bitfinex-derivatives/quotes_SOLF0:USTF0_20250829
["timestamp","ask_amount","ask_price","bid_price","bid_amount"]
[1756484766382,7.34,204.95,204.86,4.3928]
[1756484766383,0.03236314,204.92,204.86,4.3928]
[1756484768784,0.03236314,204.92,204.87,4.3925]
[1756484768986,0.03236314,204.92,204.86,2.4]
[1756484769590,0.03236314,204.92,204.89,4.3921]
[1756484769786,0.03236314,204.92,204.89,6.7921]
[1756484770290,0.03236314,204.92,204.91,2.4]
[1756484770590,0.03236314,204.92,204.91,2.88]
[1756484771189,0.03236314,204.92,204.86,2.4]
[1756484771694,0.03236314,204.92,204.91,2.4]
[1756484772387,7.74,205.02,204.94,70.7073]
[1756484772587,15.21985447,205.06,204.95,68.3033]
[1756484773192,15.21985447,205.06,204.99,4.3899]
[1756484773390,7.74,205.11,205.0,68.2869]
[1756484773592,2.37510121,205.1,205.0,68.2869]
[1756484773780,7.74,205.11,205.05,4.3886]
[1756484774185,7.74,205.11,205.06,0.03579868]
[1756484774489,8.32859356,205.12,205.06,0.03579868]
[1756484774993,7.74,205.1,205.06,0.03579868]
[1756484775183,7.74,205.11,205.06,0.03579868]
[1756484775490,2.37852675,205.1,205.06,0.03579868]
[1756484775689,8.32859356,205.12,205.06,0.03579868]
[1756484775884,7.74,205.1,205.06,0.03579868]
[1756484776186,8.32859356,205.12,205.06,0.03579868]
[1756484776389,4.3879,205.1,205.06,0.03579868]
[1756484776589,7.74,205.09,205.06,0.03579868]
[1756484776991,7.74,205.07,205.06,0.03579868]
[1756484780694,0.84873909,205.12,205.06,0.03579868]
[1756484780695,8.32859356,205.12,205.06,0.03579868]
[1756484781492,7.74,205.1,205.06,0.03579868]
[1756484781792,7.74,205.11,205.06,0.03579868]
[1756484782092,2.38271966,205.1,205.06,0.03579868]
[1756484782293,7.74,205.09,205.06,0.03579868]
[1756484782993,0.84873909,205.12,205.06,0.03579868]
[1756484784296,7.74,205.11,205.06,0.03579868]
[1756484784496,8.58873909,205.12,205.06,0.03579868]
[1756484784991,0.84873909,205.12,205.06,0.03579868]
[1756484785596,0.84873909,205.12,205.06,4.42429868]
[1756484789394,7.74,205.11,205.08,4.3881]
[1756484789597,7.74,205.11,205.06,0.03579868]
[1756484789795,7.74,205.11,205.06,2.39579868]
[1756484790494,0.84873909,205.12,205.06,2.39579868]
[1756484790495,8.58873909,205.12,205.06,2.39579868]
[1756484790992,12.97613909,205.12,205.06,2.39579868]
[1756484791499,8.58873909,205.12,205.06,6.78419868]
[1756484793201,12.97613909,205.12,205.06,6.78419868]
[1756484795604,0.84873909,205.12,205.1,2.36]
[1756484795804,4.66031062,205.14,205.06,2.39579868]
[1756484796004,72.91191062,205.11,205.06,0.03579868]
[1756484796206,4.3885,205.07,204.99,4.39]
[1756484796406,4.3885,205.07,205.06,0.03596212]
[1756484796607,141.04,205.1,205.06,0.03596212]
[1756484796796,133.3,205.1,205.06,2.36]
[1756484797105,133.3,205.1,205.06,2.39307487]
[1756484797303,133.3,205.1,205.07,2.36]
[1756484797506,133.3,205.1,205.06,0.03307487]
[1756484797704,141.0,205.1,205.06,0.03307487]
[1756484800104,7.7,205.09,205.06,0.03307487]
[1756484800299,137.96031062,205.1,205.06,0.03307487]
[1756484800500,7.7,205.07,205.06,0.03307487]
[1756484800710,12.36031062,205.07,205.06,0.03307487]
[1756484806609,12.36031062,205.07,204.98,2.36]
[1756484806812,133.08,205.06,204.98,2.36]
[1756484807312,4.3891,205.04,204.98,2.36]
[1756484807813,0.03264927,205.03,204.97,4.3904]
[1756484808014,0.03264927,205.03,204.97,6.7804]
[1756484809815,7.7,205.0,204.96,5.42017581]
[1756484810010,4.66031062,204.98,204.96,5.42017581]
[1756484810214,7.7,204.97,204.96,5.42017581]
[1756484810919,7.7,204.97,204.96,7.581e-05]
[1756484811307,0.03204617,204.99,204.96,7.581e-05]
[1756484812111,0.03204617,204.99,204.97,2.39]
[1756484812307,0.03204617,204.99,204.98,2.39]
[1756484812708,0.03204617,204.99,204.98,2.87]
[1756484814612,0.03204617,204.99,204.98,2.39]
[1756484816310,7.7,205.1,204.98,2.87]
[1756484816515,7.7,205.1,205.01,70.6723]
[1756484816717,7.7,205.1,205.01,2.39]
[1756484817017,7.7,205.1,205.04,4.3887]
[1756484817214,7.7,205.1,205.01,2.39]
[1756484817618,7.7,205.1,205.06,4.3884]
[1756484818312,17.54284077,205.12,205.06,4.3884]
[1756484819218,12.88253015,205.12,205.06,4.3884]
[1756484819514,12.88253015,205.12,205.07,4.3881]
[1756484819817,7.7,205.11,205.07,4.3881]
[1756484820018,7.7,205.11,205.05,4.3887]
[1756484821116,12.88253015,205.12,205.06,0.03111606]
[1756484821317,7.7,205.1,205.06,0.03111606]
[1756484821514,4.66031062,205.11,205.06,0.03111606]
[1756484821718,7.7,205.1,205.06,0.03111606]
[1756484822319,5.18253015,205.12,205.06,0.03111606]
[1756484823421,5.18253015,205.12,205.09,2.39]
[1756484823622,7.7,205.19,205.09,2.39]
[1756484823825,8.54856317,205.19,205.09,2.39]
[1756484824413,8.54856317,205.19,205.11,4.3874]
[1756484824619,8.54856317,205.19,205.09,2.39]
[1756484824925,8.54856317,205.19,205.12,4.3871]
[1756484825127,7.7,205.14,205.05,2.39]
[1756484825318,4.66031062,205.13,205.01,7.05031062]
[1756484825518,7.7,205.12,205.01,6.7794]
[1756484825720,7.7,205.09,205.01,6.7794]
[1756484825920,7.7,205.09,205.04,4.3888]
[1756484826118,7.7,205.13,205.01,7.05031062]
[1756484826523,7.7,205.13,205.05,0.03144367]
[1756484826719,12.36031062,205.13,205.05,0.03144367]
[1756484827426,12.36031062,205.13,205.06,4.3884]
[1756484828015,16.74751062,205.13,205.06,4.3884]
[1756484828230,12.36031062,205.13,205.05,0.03144367]
[1756484829321,7.7,205.13,205.05,0.03144367]
[1756484829528,7.45729302,205.11,205.05,0.03144367]
[1756484829731,7.45729302,205.08,205.05,0.03144367]
[1756484830028,7.24,205.07,205.05,0.03144367]
[1756484830224,7.24,205.07,204.95,10.52866122]
[1756484830225,0.48,205.07,204.95,10.52866122]
[1756484830421,208.17989302,205.08,204.95,8.14866122]
[1756484830422,7.45729302,205.02,204.95,8.14866122]
[1756484830623,7.24,205.01,204.95,8.14866122]
[1756484831028,7.45729302,205.02,204.95,8.14866122]
[1756484831327,7.24,205.01,204.95,8.14866122]
[1756484831526,7.27406031,205.01,204.95,8.14866122]
[1756484831726,7.24,204.98,204.95,8.14866122]
[1756484832127,7.45729302,204.99,204.95,8.14866122]
[1756484832521,7.45729302,204.96,204.95,0.20866122]
[1756484832726,14.69729302,204.96,204.95,0.20866122]
[1756484832923,7.24,204.96,204.95,0.20866122]
[1756484833128,132.4,204.99,204.95,0.20866122]
[1756484833428,7.24,204.98,204.95,0.20866122]
[1756484833624,7.24,204.99,204.95,0.20866122]
[1756484834223,0.03406031,205.01,204.95,0.20866122]
[1756484835131,0.03406031,205.01,204.96,4.3906]
[1756484835325,0.03406031,205.01,204.95,0.20866122]
[1756484835629,0.03406031,205.01,204.97,7.19]
[1756484835825,0.03406031,205.01,204.96,68.3002]
[1756484836129,0.03406031,205.01,204.99,11.58]
[1756484837729,7.27406031,205.01,204.92,75.5024]
[1756484837935,7.27406031,205.01,204.92,7.19]
[1756484838133,7.27406031,205.01,204.92,75.5036]
[1756484840233,7.27406031,205.01,204.94,4.3911]
[1756484840434,7.45729302,205.0,204.88,7.19]
[1756484841132,0.03314065,204.96,204.88,7.19]
[1756484841332,7.24,204.95,204.91,4.3916]
[1756484841836,7.24,204.95,204.88,11.5822]
[1756484842637,7.24,204.95,204.88,7.19]
[1756484843831,0.03314065,204.96,204.88,7.19]
[1756484844231,0.03314065,204.96,204.87,68.3303]
[1756484844232,0.03314065,204.96,204.92,68.3133]
[1756484844432,0.03314065,204.96,204.93,7.19]
[1756484844638,0.03314065,204.96,204.95,7.19]
[1756484845137,7.24,205.08,204.96,68.2999]
[1756484845436,5.18253015,205.1,205.0,7.19]
[1756484846440,5.18253015,205.1,205.03,0.03096721]
[1756484847338,7.24,205.09,205.03,0.03096721]
[1756484848244,14.69729302,205.09,205.03,0.03096721]
[1756484848743,7.24,205.09,205.03,0.03096721]
[1756484849144,137.24253015,205.1,205.03,0.03096721]
[1756484849145,5.18253015,205.1,205.04,75.4635]
[1756484849943,5.18253015,205.1,205.04,7.19]
[1756484850341,5.18253015,205.1,205.05,4.3888]
[1756484851246,5.18253015,205.1,205.04,75.4637]
[1756484851746,5.18253015,205.1,205.07,4.3884]
[1756484852239,5.18253015,205.1,205.04,7.19]
[1756484852848,5.18253015,205.1,205.06,4.3884]
[1756484853041,5.18253015,205.1,205.06,11.5784]
[1756484853238,5.18253015,205.1,205.06,4.3884]
[1756484853650,5.18253015,205.1,205.04,4.389]
[1756484853843,5.18253015,205.1,205.03,0.03096721]
[1756484854340,7.45729302,205.06,205.03,0.03096721]
[1756484854542,7.24,205.04,204.9,7.19]
[1756484854742,7.24,205.0,204.9,7.19]
[1756484855646,7.24,205.0,204.9,75.5104]
[1756484855842,0.03389735,204.97,204.9,75.5104]
[1756484856342,0.03389735,204.97,204.96,4.3907]
[1756484856847,0.03389735,204.97,204.96,11.6307]
[1756484861052,0.03389735,204.97,204.95,5.44781084]
[1756484861254,7.63389735,204.97,204.95,5.44781084]
[1756484861453,7.6,204.96,204.95,5.44781084]
[1756484862353,0.03389735,204.97,204.95,5.44781084]
[1756484862545,7.63389735,204.97,204.95,5.44781084]
[1756484864052,7.6,204.96,204.95,5.44781084]
[1756484865249,15.53729302,204.96,204.95,5.44781084]
[1756484865450,7.6,204.95,204.87,10.87400759]
[1756484865655,7.6,204.92,204.87,10.87400759]
[1756484865856,15.05729302,204.93,204.87,10.87400759]
[1756484866158,7.6,204.92,204.9,5.44373805]
[1756484866457,7.63390317,204.92,204.9,5.44373805]
[1756484866759,7.6,204.91,204.9,5.44373805]
[1756484867655,7.6,204.88,204.82,10.87400759]
[1756484867860,7.6,204.83,204.82,10.87400759]
[1756484868059,7.6,204.83,204.72,4.3957]
[1756484868261,7.6,204.8,204.72,4.3957]
[1756484868556,7.45729302,204.83,204.74,4.3954]
[1756484868853,7.45729302,204.83,204.71,7.24]
[1756484869059,7.6,204.8,204.71,7.24]
[1756484870759,7.6,204.79,204.71,7.24]
[1756484871661,7.6,204.79,204.72,4.3958]
[1756484872161,7.6,204.79,204.71,7.24]
[1756484873765,4.3946,204.78,204.71,7.24]
[1756484874159,7.6,204.79,204.71,7.24]
[1756484874365,0.03654248,204.77,204.71,7.24]
[1756484879062,0.03654248,204.77,204.72,4.3958]
[1756484879466,0.03654248,204.77,204.73,7.24]
[1756484879666,7.45729302,204.74,204.64,4.3974]
[1756484879866,7.45729302,204.74,204.63,7.24]
[1756484880263,7.45729302,204.8,204.68,7.24]
[1756484880467,0.03276773,204.71,204.68,7.24]
[1756484880668,7.6,204.83,204.72,7.24]
[1756484881070,131.48,204.82,204.72,7.24]
[1756484881369,0.03442321,204.8,204.77,7.24]
[1756484881670,4.3928,204.87,204.79,7.24]
[1756484881869,7.6,204.88,204.75,7.27567158]
[1756484882061,7.45729302,204.86,204.75,7.24]
[1756484882261,5.18253015,204.92,204.85,7.24]
[1756484882671,5.18253015,204.92,204.86,0.03654986]
[1756484884170,9.57413015,204.92,204.86,0.03654986]
[1756484884371,5.18253015,204.92,204.86,0.03654986]
[1756484884667,5.18253015,204.92,204.86,68.37024986]
[1756484884965,5.18253015,204.92,204.87,7.24]
[1756484885171,5.18253015,204.92,204.91,7.24]
[1756484885367,401.57383015,205.05,204.91,7.24]
[1756484885568,131.4,205.03,204.91,7.24]
[1756484886067,4.3895,205.02,204.95,0.03179101]
[1756484887376,68.282,205.02,204.95,0.03179101]
[1756484887671,7.15,205.01,204.95,0.03179101]
[1756484888468,11.5402,204.99,204.95,0.03179101]
[1756484888669,7.15,204.99,204.95,0.03179101]
[1756484888875,4.3896,205.02,204.95,0.03179101]
[1756484889374,7.45729302,204.99,204.95,0.03179101]
[1756484889573,7.15,204.97,204.95,0.03179101]
[1756484889770,14.60729302,205.02,204.95,0.03179101]
[1756484889974,131.28,204.99,204.95,0.03179101]
[1756484890177,4.3898,205.01,204.95,0.03179101]
[1756484890372,131.26,205.0,204.95,0.03179101]
[1756484890775,4.3898,205.01,204.95,0.03179101]
[1756484891174,7.15,205.02,204.95,0.03179101]
[1756484891775,4.3885,205.07,204.96,7.61]
[1756484891970,131.24,205.06,204.96,7.61]
[1756484892167,131.24,205.06,204.96,75.9101]
[1756484892471,7.15,205.08,205.01,4.3896]
[1756484893179,131.22,205.1,205.01,4.3896]
[1756484893473,328.08,205.11,205.01,4.3896]
[1756484893775,463.6676,205.11,205.03,0.03542981]
[1756484894277,459.28,205.11,205.03,4.42462981]
[1756484894576,7.15,205.1,205.03,0.03542981]
[1756484895278,11.5378,205.1,205.03,0.03542981]
[1756484897469,7.15,205.1,205.03,0.03542981]
[1756484897672,130.8320708,205.12,205.03,7.64542981]
[1756484897875,5.18253015,205.14,205.04,7.61]
[1756484898271,5.18253015,205.14,205.05,4.3888]
[1756484898577,5.18253015,205.14,205.04,7.61]
[1756484899079,5.18253015,205.14,205.07,0.03583336]
[1756484900478,7.15,205.15,205.07,0.03583336]
[1756484901181,75.3881,205.15,205.07,0.03583336]
[1756484901383,7.45729302,205.13,205.07,0.03583336]
[1756484901580,14.60729302,205.13,205.07,0.03583336]
[1756484902177,7.15,205.09,205.07,0.03583336]
[1756484902373,4.3888,205.05,204.95,4.3909]
[1756484902578,138.11,205.08,204.94,15.06729302]
[1756484902973,138.11,205.08,204.96,4.3905]
[1756484903180,138.11,205.08,204.94,15.06729302]
[1756484903683,0.03457308,205.03,204.94,15.06729302]
[1756484904080,0.03457308,205.03,204.96,4.3905]
[1756484905678,0.03457308,205.03,204.97,4.3903]
[1756484905880,0.03457308,205.03,204.95,7.61]
[1756484907281,0.03457308,205.03,204.98,4.3901]
[1756484907687,0.03457308,205.03,204.98,12.0001]
[1756484908185,0.03457308,205.03,204.98,4.3901]
[1756484908386,0.03457308,205.03,204.99,7.61]
[1756484909482,0.03457308,205.03,204.99,4.3899]
[1756484909682,0.03457308,205.03,204.98,7.61]
[1756484910185,0.03457308,205.03,205.0,4.3897]
[1756484910385,0.03457308,205.03,205.0,7.61]
[1756484910581,0.03457308,205.03,205.0,7.93729302]
[1756484910780,0.03457308,205.03,205.02,7.61]
[1756484910982,7.15,205.18,205.05,7.61]
[1756484911487,4.3863,205.17,205.05,7.61]
[1756484911992,4.3867,205.15,205.05,11.9986]
[1756484912190,68.2381,205.15,205.09,0.03482065]
[1756484912388,7.45729302,205.14,205.09,0.03482065]
[1756484912591,7.15,205.13,204.98,15.06729302]
[1756484912790,7.15,205.13,205.09,0.03234244]
[1756484912991,7.45729302,205.14,205.09,0.03234244]
[1756484913294,11.5379,205.1,205.01,4.3895]
[1756484913489,11.5379,205.1,205.09,0.03537748]
[1756484913681,11.5379,205.1,205.01,11.9995]
[1756484913997,7.15,205.09,205.07,0.03478705]
[1756484914492,7.15,205.14,205.07,0.03478705]
[1756484914995,4.3873,205.13,205.07,0.03478705]
[1756484915193,7.15,205.14,205.07,0.03478705]
[1756484915494,7.45729302,205.12,205.07,0.03478705]
[1756484915895,7.15,205.08,205.07,0.03478705]
[1756484917996,7.75,205.1,205.07,0.03478705]
[1756484918291,4.3879,205.1,205.07,0.03478705]
[1756484918695,7.75,205.09,205.07,0.03478705]
[1756484919094,4.3879,205.1,205.07,0.03478705]
[1756484919298,7.75,205.09,205.07,0.03478705]
[1756484922599,7.75,205.01,204.9,7.78]
[1756484922793,7.45729302,204.95,204.84,7.78]
[1756484922997,7.45729302,204.95,204.84,12.1731]
[1756484923803,83.55576268,204.92,204.84,7.78]
[1756484924004,83.55576268,204.92,204.82,5.3982023]
[1756484924804,68.3213,204.9,204.82,5.3982023]
[1756484925108,15.24166268,204.92,204.82,5.3982023]
[1756484925306,0.03436966,204.92,204.85,5.3982023]
[1756484927707,4.42596966,204.92,204.85,5.3982023]
[1756484928209,0.03436966,204.92,204.85,5.3982023]
[1756484928802,4.3919,204.91,204.85,5.3982023]
[1756484929205,0.03436966,204.92,204.85,5.3982023]
[1756484930308,4.42596966,204.92,204.85,5.3982023]
[1756484931114,0.03436966,204.92,204.85,5.3982023]
[1756484931517,15.20729302,204.86,204.85,2.3e-06]
[1756484931719,12.1435,204.83,204.82,7.688e-05]
[1756484932014,19.60079302,204.83,204.82,7.688e-05]
[1756484932514,0.03161346,204.85,204.82,7.688e-05]
[1756484932718,7.78161346,204.85,204.82,7.688e-05]
[1756484933515,0.03161346,204.85,204.82,7.688e-05]
[1756484933808,7.75,204.83,204.82,7.688e-05]
[1756484934822,12.1433,204.84,204.82,7.688e-05]
[1756484935014,4.3933,204.84,204.82,7.688e-05]
[1756484935319,0.03161346,204.85,204.82,7.688e-05]
[1756484935619,0.03161346,204.85,204.82,7.78007688]
[1756484936421,0.03161346,204.85,204.82,7.688e-05]
[1756484937211,0.03161346,204.85,204.79,7.78]
[1756484937820,0.03161346,204.85,204.79,15.23729302]
[1756484938314,0.03161346,204.85,204.8,7.78]
[1756484938508,0.03161346,204.85,204.81,4.8739]
[1756484938710,0.03161346,204.85,204.84,7.78]
[1756484938918,0.03161346,204.85,204.84,8.26]
[1756484939225,0.03161346,204.85,204.84,7.78]
[1756484940120,0.03161346,204.85,204.79,4.3943]
[1756484940425,0.03161346,204.85,204.79,7.78]
[1756484940817,0.03161346,204.85,204.81,7.45729302]
[1756484941321,0.03161346,204.85,204.82,7.78]
[1756484941523,0.03161346,204.85,204.81,7.45729302]
[1756484941721,0.03161346,204.85,204.84,7.45729302]
[1756484941921,335.59,204.95,204.84,15.23729302]
[1756484942123,4.3911,204.94,204.84,15.23729302]
[1756484942629,4.3911,204.94,204.84,19.63039302]
[1756484943124,4.3911,204.94,204.87,0.03112745]
[1756484945023,7.75,204.95,204.87,0.03112745]
[1756484947225,7.16,204.9,204.87,0.03112745]
[1756484947423,7.16,204.93,204.87,0.03112745]
[1756484947929,7.16,204.88,204.87,0.03112745]
[1756484948228,4.3923,204.89,204.87,0.03112745]
[1756484948730,11.5523,204.89,204.87,0.03112745]
[1756484949435,7.16,204.88,204.87,0.03112745]
[1756484950927,7.16,204.88,204.87,2.745e-05]
[1756484951521,68.3343,204.86,204.75,7.89]
[1756484951930,7.16,204.85,204.75,7.89]
[1756484952233,4.3941,204.81,204.75,7.89]
[1756484952627,7.16,204.85,204.75,7.89]
[1756484952831,0.03281439,204.8,204.75,7.89]
[1756484953128,0.03281439,204.8,204.75,4.3951]
[1756484953723,0.03281439,204.8,204.76,7.89]
[1756484954124,0.03281439,204.8,204.74,7.89]
[1756484957132,0.03281439,204.8,204.76,4.3948]
[1756484957332,0.03281439,204.8,204.77,7.89]
[1756484957533,0.03281439,204.8,204.76,4.3948]
[1756484957833,0.03281439,204.8,204.77,7.89]
[1756484958038,0.03281439,204.8,204.76,4.3948]
[1756484958339,0.03281439,204.8,204.74,130.1]
[1756484958340,0.03281439,204.8,204.79,7.89]
[1756484961035,0.03281439,204.8,204.74,137.55729302]
[1756484961223,0.03281439,204.8,204.75,7.89]
[1756484961422,0.03281439,204.8,204.74,137.55729302]
[1756484961627,0.03281439,204.8,204.79,7.89]
[1756484963033,7.16,204.89,204.82,12.2837]
[1756484964135,11.5523,204.89,204.83,0.03207046]
[1756484964432,4.3923,204.89,204.83,0.03207046]
[1756484964736,7.16,205.0,204.89,7.89]
[1756484964929,4.3909,204.95,204.89,7.89]
[1756484965325,4.3909,204.95,204.9,0.0374713]
[1756484965534,11.5509,204.95,204.9,0.0374713]
[1756484966237,7.16,204.95,204.9,0.0374713]
[1756484966633,7.16,204.97,204.9,0.0374713]
[1756484968034,7.16,204.97,204.91,4.3917]
[1756484968234,7.16,205.03,204.91,4.3917]
[1756484968434,2.38255981,205.02,204.91,4.3917]
[1756484968637,7.16,205.0,204.91,4.3917]
[1756484968833,4.3904,204.98,204.94,0.03627099]
[1756484969035,68.2836,205.02,204.94,0.03627099]
[1756484969235,9.54265418,205.01,204.94,0.03627099]
[1756484969432,4.3906,204.97,204.94,0.03627099]
[1756484969840,11.5506,204.97,204.94,0.03627099]
[1756484970338,4.3906,204.97,204.94,0.03627099]
[1756484970543,11.5506,204.97,204.94,0.03627099]
[1756484971338,7.16,205.03,204.95,7.89]
[1756484972040,7.16,205.01,204.97,0.03212021]
[1756484972340,7.16,205.04,204.97,0.03212021]
[1756484972640,68.2808,205.02,204.97,0.03212021]
[1756484972842,7.16,204.97,204.84,7.89]
[1756484974050,0.0372113,204.93,204.84,7.89]
[1756484974443,0.0372113,204.93,204.86,4.3927]
[1756484975045,4.3917,204.92,204.84,12.2832]
[1756484975345,7.16,204.92,204.84,7.89]
[1756484975741,7.16,204.88,204.83,5.4465969]
[1756484975940,68.3185,204.91,204.83,5.4465969]
[1756484976145,7.16,204.9,204.83,5.4465969]
[1756484976346,4.393,204.86,204.83,5.4465969]
[1756484976544,7.16,204.85,204.83,5.4465969]
[1756484976742,7.79,204.85,204.83,5.4465969]
[1756484976942,12.1831,204.85,204.83,5.4465969]
[1756484977441,0.03547564,204.89,204.83,5.4465969]
[1756484978647,0.03547564,204.89,204.87,4.3925]
[1756484978844,0.03547564,204.89,204.88,7.35]
[1756484979549,0.03547564,204.89,204.86,7.35]
[1756484980148,0.03547564,204.89,204.87,7.35]
[1756484981042,0.03547564,204.89,204.84,4.3932]
[1756484981241,0.03547564,204.89,204.84,11.7432]
[1756484981647,0.03547564,204.89,204.85,7.35]
[1756484981846,0.03547564,204.89,204.86,7.35]
[1756484982248,0.03547564,204.89,204.83,5.4465969]
[1756484983348,0.03547564,204.89,204.83,9.8398969]
[1756484983950,0.03547564,204.89,204.83,5.4465969]
[1756484984340,4.42777564,204.89,204.83,5.4465969]
[1756484984550,4.42777564,204.89,204.82,4.3936]
[1756484984742,7.82547564,204.89,204.76,75.82409302]
[1756484984946,7.79,204.88,204.76,7.35]
[1756484985356,0.03087921,204.84,204.76,7.35]
[1756484986047,0.03087921,204.84,204.8,7.35]
[1756484986549,0.03087921,204.84,204.79,4.3942]
[1756484986846,0.03087921,204.84,204.8,7.35]
[1756484988549,0.03087921,204.84,204.75,12.7965969]
[1756484989055,4.3936,204.83,204.75,12.7965969]
[1756484989253,0.03087921,204.84,204.75,12.7965969]
[1756484990854,0.03087921,204.84,204.77,4.3946]
[1756484992055,0.03087921,204.84,204.78,11.7444]
[1756484992260,0.03087921,204.84,204.78,7.35]
[1756484993159,4.3938,204.82,204.78,7.35]
[1756484993961,4.3938,204.82,204.72,462.9065969]
[1756484993962,7.79,204.81,204.72,5.4465969]
[1756484994161,7.45729302,204.79,204.72,5.4465969]
[1756484994458,76.1506,204.78,204.72,5.4465969]
[1756484994654,76.18554941,204.78,204.72,5.4465969]
[1756484995057,0.03494941,204.78,204.72,12.7965969]
[1756484996062,4.3953,204.75,204.72,12.7965969]
[1756484996266,0.03494941,204.78,204.72,12.7965969]
[1756484997167,4.3951,204.76,204.72,12.7965969]
[1756484998458,4.42954941,204.78,204.72,5.4465969]
[1756484998664,0.03494941,204.78,204.72,5.4465969]
[1756485000165,68.39674941,204.78,204.72,5.4465969]
[1756485000367,7.79,204.75,204.72,5.4465969]
[1756485000568,0.03494941,204.78,204.72,5.4465969]
[1756485000766,0.03494941,204.78,204.72,17.1922969]
[1756485000960,0.03494941,204.78,204.72,12.7965969]
[1756485001362,0.03494941,204.78,204.74,7.35]
[1756485001871,0.03494941,204.78,204.73,7.35]
[1756485002472,0.03494941,204.78,204.75,4.3951]
[1756485002773,0.03494941,204.78,204.72,12.7965969]
[1756485003369,4.67485413,204.75,204.72,9.69e-05]
[1756485003572,4.70980354,204.78,204.72,7.3500969]
[1756485004072,4.70980354,204.78,204.72,9.69e-05]
[1756485004268,12.49980354,204.78,204.72,9.69e-05]
[1756485004466,4.70980354,204.78,204.72,9.69e-05]
[1756485004671,0.03494941,204.78,204.72,9.69e-05]
[1756485005674,0.03494941,204.78,204.74,4.3952]
[1756485006170,0.03494941,204.78,204.72,9.69e-05]
[1756485006969,4.3951,204.76,204.72,9.69e-05]
[1756485007171,0.03494941,204.78,204.72,9.69e-05]
[1756485007364,0.03494941,204.78,204.7,7.47]
[1756485007570,0.03494941,204.78,204.73,4.3955]
[1756485008267,0.03494941,204.78,204.74,7.47]
[1756485008469,0.03494941,204.78,204.72,7.47]
[1756485008975,0.03494941,204.78,204.73,4.3955]
[1756485009175,7.72494941,204.78,204.68,7.47]
[1756485009572,76.08584941,204.78,204.68,7.47]
[1756485009772,7.69,204.75,204.71,0.03085463]
[1756485009973,75.8458055,204.76,204.71,0.03085463]
[1756485010175,7.69,204.72,204.71,0.03085463]
[1756485010472,0.03302059,204.76,204.71,0.03085463]
[1756485010670,4.42812059,204.76,204.72,7.47]
[1756485011079,0.03302059,204.76,204.71,0.03085463]
[1756485011273,0.03302059,204.76,204.72,7.47]
[1756485011978,7.72302059,204.76,204.71,0.03085463]
[1756485012275,0.03302059,204.76,204.71,7.50085463]
[1756485012574,4.42812059,204.76,204.71,7.50085463]
[1756485013175,0.03302059,204.76,204.71,7.50085463]
[1756485013979,0.03302059,204.76,204.71,11.89675463]
[1756485014583,0.03302059,204.76,204.71,0.03085463]
[1756485014784,0.03302059,204.76,204.72,7.47]
[1756485014977,4.3929,204.86,204.72,75.8501]
[1756485015181,129.11860356,204.88,204.79,4.3943]
[1756485015683,133.51110356,204.88,204.78,7.47]
[1756485015881,133.51110356,204.88,204.81,4.3937]
[1756485016478,129.11860356,204.88,204.82,75.8168]
[1756485016680,129.11860356,204.88,204.84,7.47]
[1756485016974,4.3926,204.88,204.83,0.03115794]
[1756485017278,7.69,204.87,204.83,0.03115794]
[1756485017586,4.3926,204.88,204.83,0.03115794]
[1756485018081,4.392,204.9,204.83,0.03115794]
[1756485018282,7.69,204.91,204.83,7.50115794]
[1756485019183,4.3926,204.88,204.83,7.50115794]
[1756485020083,7.69,204.86,204.83,0.03115794]
[1756485020280,4.3928,204.87,204.83,0.03115794]
[1756485020585,76.0145,204.89,204.83,0.03115794]
[1756485020783,68.3314,204.87,204.83,0.03115794]
[1756485021381,7.69,204.86,204.83,0.03115794]
[1756485021586,4.3931,204.85,204.83,0.03115794]
[1756485021779,68.317,204.91,204.83,0.03115794]
[1756485021780,129.18,204.91,204.83,0.03115794]
[1756485022079,4.3928,204.87,204.83,0.03115794]